[Event "European Online Club-ch-A 2021"]
[Site "Online"]
[Date "2021.03.27"]
[Round "6.15"]
[White "Timofeev, Artyom"]
[Black "Agopov, Mikael"]
[Result "1-0"]
[ECO "A64"]
[WhiteElo "2594"]
[BlackElo "2427"]
[Annotator "ChessBase"]
[PlyCount "119"]
[EventDate "2021.03.27"]
[EventType "team-tourn"]
[EventCountry "NET"]
[SourceTitle "playchess.com"]
[Source "ChessBase"]
[SourceQuality "1"]
[TimeControl "900+5"]

1. d4 {[%emt 0:00:00]} Nf6 {[%emt 0:00:03]} 2. c4 {[%emt 0:00:03]} e6 {[%emt 0:00:01]} 3. g3 {[%emt 0:00:14]} c5 {[%emt 0:00:11]} 4. d5 {[%emt 0:00:05]} exd5 {[%emt 0:00:02]} 5. cxd5 {[%emt 0:00:01]} d6 {[%emt 0:00:02]} 6. Nc3 {[%emt 0:00:06]} g6 {[%emt 0:00:02]} 7. Bg2 {[%emt 0:00:02]} Bg7 {[%emt 0:00:02]} 8. Nf3 {[%emt 0:00:06]} O-O {[%emt 0:00:02]} 9. O-O {[%emt 0:00:02]} Re8 {[%emt 0:00:03]} 10. Nd2 {[%emt 0:00:04]} Nbd7 {[%emt 0:00:13]} 11. a4 {[%emt 0:00:20]} a6 {[%emt 0:00:16]} 12. h3 {[%emt 0:00:07]} Rb8 {[%emt 0:01:03]} 13. a5 {[%emt 0:00:05]} b5 {[%emt 0:00:04]} 14. axb6 {[%emt 0:00:02]} Nxb6 {[%emt 0:00:01]} 15. Re1 {[%emt 0:00:36]} Bd7 {[%emt 0:00:05]} 16. Kh2 {[%emt 0:01:10]} Bb5 {[%emt 0:00:19]} 17. Nde4 {[%emt 0:00:23]} Nxe4 {[%emt 0:01:07]} 18. Nxe4 {[%emt 0:00:06]} Nc4 {[%emt 0:00:05]} 19. Bg5 {[%emt 0:00:17]} f6 {[%emt 0:00:03]} 20. Bc1 {[%emt 0:00:03]} f5 {[%emt 0:00:14]} 21. Nc3 {[%emt 0:00:17]} Qb6 {[%emt 0:02:08]} 22. Qb3 {[%emt 0:02:25]} Ne5 {[%emt 0:00:28]} 23. Nxb5 {[%emt 0:00:40]} axb5 {[%emt 0:00:09]} 24. Qc2 {[%emt 0:00:24]} b4 {[%emt 0:00:34]} 25. Bd2 {[%emt 0:02:49]} Qb5 {[%emt 0:01:24]} 26. b3 {[%emt 0:00:34]} c4 {[%emt 0:00:06]} 27. Ra4 {[%emt 0:00:51]} c3 {[%emt 0:00:44]} 28. Be3 {[%emt 0:00:04]} Nd7 {[%emt 0:00:05]} 29. Bf4 {[%emt 0:00:09]} Be5 {[%emt 0:00:22]} 30. Bxe5 {[%emt 0:00:08]} Rxe5 {[%emt 0:00:03]} 31. Bf3 {[%emt 0:00:03]} Nc5 {[%emt 0:00:16]} 32. Raa1 {[%emt 0:00:21]} Rbe8 {[%emt 0:00:32]} 33. Kg2 {[%emt 0:00:05]} Ne4 {[%emt 0:02:32]} 34. e3 {[%emt 0:00:06]} Nd2 {[%emt 0:00:16]} 35. Qd1 {[%emt 0:01:04]} Rc8 {[%emt 0:00:34]} 36. Ra2 {[%emt 0:00:58]} Rxd5 {[%emt 0:00:49]} 37. Bxd5+ {[%emt 0:00:08]} Qxd5+ {[%emt 0:00:03]} 38. e4 {[%emt 0:00:01]} fxe4 {[%emt 0:00:15]} 39. Re3 {[%emt 0:00:04]} Qc5 {[%emt 0:00:22]} 40. Rxd2 {[%emt 0:00:13]} cxd2 {[%emt 0:00:02]} 41. Qxd2 {[%emt 0:00:01]} d5 {[%emt 0:00:02]} 42. Re1 {[%emt 0:00:11]} Kg7 {[%emt 0:00:39]} 43. Rd1 {[%emt 0:00:06]} Rd8 {[%emt 0:00:03]} 44. Rc1 {[%emt 0:00:05]} Qd6 {[%emt 0:00:04]} 45. Qd4+ {[%emt 0:00:06]} Kg8 {[%emt 0:00:06]} 46. Rc5 {[%emt 0:00:15]} Qe6 {[%emt 0:00:17]} 47. Rc7 {[%emt 0:00:17]} Rd7 {[%emt 0:00:50]} 48. Rc8+ {[%emt 0:00:01]} Kf7 {[%emt 0:00:01]} 49. Qh8 {[%emt 0:00:02]} Qe7 {[%emt 0:01:00]} 50. h4 {[%emt 0:00:41]} e3 {[%emt 0:00:13]} 51. Qg8+ {[%emt 0:00:05]} Kf6 {[%emt 0:00:01]} 52. Rf8+ {[%emt 0:00:04]} Ke5 {[%emt 0:00:02]} 53. fxe3 {[%emt 0:00:54]} Kd6 {[%emt 0:00:17]} 54. Rf4 {[%emt 0:00:28]} Rc7 {[%emt 0:00:03]} 55. Qb8 {[%emt 0:00:07]} Qxe3 {[%emt 0:00:03]} 56. Qd8+ {[%emt 0:00:36]} Rd7 {[%emt 0:00:10]} 57. Rf6+ {[%emt 0:00:07]} Ke5 {[%emt 0:00:05]} 58. Qe8+ {[%emt 0:00:02]} Kd4 {[%emt 0:00:03]} 59. Rf4+ {[%emt 0:00:02]} Kd3 {[%emt 0:00:05]} 60. Rf3 {[%emt 0:00:10]} 1-0

[Event "European Online Club-ch-A 2021"]
[Site "Online"]
[Date "2021.03.27"]
[Round "6.16"]
[White "Noetzel, Felix"]
[Black "Sharafiev, Azat"]
[Result "0-1"]
[ECO "C56"]
[WhiteElo "2263"]
[BlackElo "2432"]
[Annotator "NA"]
[PlyCount "106"]
[EventDate "2021.03.27"]
[EventType "team-tourn"]
[EventCountry "NET"]
[SourceTitle "playchess.com"]
[Source "ChessBase"]
[SourceQuality "1"]
[TimeControl "900+5"]

1. e4 {[%emt 0:00:00]} e5 {[%emt 0:00:02]} 2. Nf3 {[%emt 0:00:03]} Nc6 {[%emt 0:00:02]} 3. d4 {[%emt 0:00:01]} exd4 {[%emt 0:00:02]} 4. Bc4 {[%emt 0:00:02]} Nf6 {[%emt 0:00:05]} 5. O-O {[%emt 0:00:02]} Nxe4 {[%emt 0:00:04]} 6. Re1 {[%emt 0:00:01]} d5 {[%emt 0:00:01]} 7. Bxd5 {[%emt 0:00:02]} Qxd5 {[%emt 0:00:01]} 8. Nc3 {[%emt 0:00:01]} Qa5 {[%emt 0:00:02]} 9. Nxe4 {[%emt 0:00:02]} Be6 {[%emt 0:00:02]} 10. Neg5 {[%emt 0:00:04]} O-O-O {[%emt 0:00:02]} 11. Nxe6 {[%emt 0:00:01]} fxe6 {[%emt 0:00:01]} 12. Rxe6 {[%emt 0:00:02]} Bd6 {[%emt 0:00:02]} 13. Bg5 {[%emt 0:00:03]} Rde8 {[%emt 0:00:02]} 14. Qe1 {[%emt 0:00:02]} Qxe1+ {[%emt 0:00:02]} 15. Raxe1 {[%emt 0:00:03]} Kd7 {[%emt 0:00:02]} 16. Rxe8 {[%emt 0:00:04]} Rxe8 {[%emt 0:00:01]} 17. Rxe8 {[%emt 0:00:01]} Kxe8 {[%emt 0:00:02]} 18. Kf1 {[%emt 0:00:01]} Kd7 {[%emt 0:00:02]} 19. Bd2 {[%emt 0:00:02]} h6 {[%emt 0:00:17]} 20. Ke2 {[%emt 0:00:01]} Ke6 {[%emt 0:00:01]} 21. Kd3 {[%emt 0:00:02]} Kd5 {[%emt 0:00:02]} 22. Nxd4 {[%emt 0:00:02]} Ne5+ {[%emt 0:00:03]} 23. Kc3 {[%emt 0:02:42]} a5 {[%emt 0:00:02]} 24. a3 {[%emt 0:00:06]} Nc4 {[%emt 0:00:02]} 25. Nf3 {[%emt 0:02:19]} a4 {[%emt 0:01:26]} 26. Be3 {[%emt 0:03:36]} Nxe3 {[%emt 0:09:06]} 27. fxe3 {[%emt 0:00:03]} Ke4 {[%emt 0:00:02]} 28. Kd2 {[%emt 0:06:09]} Bc5 {[%emt 0:00:03]} 29. Ke2 {[%emt 0:00:01]} Bxe3 {[%emt 0:00:10]} 30. Ne1 {[%emt 0:00:01]} c5 {[%emt 0:03:28]} 31. b3 {[%emt 0:00:24]} b5 {[%emt 0:00:07]} 32. bxa4 {[%emt 0:00:09]} bxa4 {[%emt 0:00:01]} 33. Nd3 {[%emt 0:00:06]} Bd4 {[%emt 0:00:06]} 34. c3 {[%emt 0:01:00]} c4 {[%emt 0:00:42]} 35. Nb2 {[%emt 0:00:03]} Bxc3 {[%emt 0:00:03]} 36. Nxa4 {[%emt 0:00:02]} Be5 {[%emt 0:00:58]} 37. h3 {[%emt 0:00:04]} Bd4 {[%emt 0:00:40]} 38. Kd2 {[%emt 0:00:16]} h5 {[%emt 0:00:06]} 39. Nc3+ {[%emt 0:00:04]} Ke5 {[%emt 0:00:02]} 40. Ne2 {[%emt 0:00:25]} Bc5 {[%emt 0:00:02]} 41. a4 {[%emt 0:00:01]} Bb4+ {[%emt 0:00:02]} 42. Ke3 {[%emt 0:00:03]} h4 {[%emt 0:00:05]} 43. g3 {[%emt 0:00:12]} g5 {[%emt 0:00:14]} 44. gxh4 {[%emt 0:00:04]} gxh4 {[%emt 0:00:01]} 45. Nf4 {[%emt 0:00:04]} Bc5+ {[%emt 0:00:08]} 46. Kf3 {[%emt 0:00:05]} c3 {[%emt 0:00:05]} 47. Nd3+ {[%emt 0:00:03]} Kd4 {[%emt 0:00:04]} 48. Nxc5 {[%emt 0:00:02]} Kxc5 {[%emt 0:00:01]} 49. Ke3 {[%emt 0:00:01]} Kb4 {[%emt 0:00:03]} 50. Kd3 {[%emt 0:00:02]} Kb3 {[%emt 0:00:07]} 51. a5 {[%emt 0:00:01]} c2 {[%emt 0:00:01]} 52. a6 {[%emt 0:00:01]} c1=Q {[%emt 0:00:01]} 53. a7 {[%emt 0:00:01]} Qc4+ {[%emt 0:00:02]} 0-1

[Event "European Online Club-ch-A 2021"]
[Site "Online"]
[Date "2021.03.27"]
[Round "6.17"]
[White "Deac, Bogdan-Daniel"]
[Black "Hera, Imre Jr."]
[Result "1/2-1/2"]
[ECO "B10"]
[WhiteElo "2625"]
[BlackElo "2610"]
[Annotator "ChessBase"]
[PlyCount "114"]
[EventDate "2021.03.27"]
[EventType "team-tourn"]
[EventCountry "NET"]
[SourceTitle "playchess.com"]
[Source "ChessBase"]
[SourceQuality "1"]
[TimeControl "900+5"]

1. e4 {[%emt 0:00:00]} c6 {[%emt 0:00:17]} 2. Nf3 {[%emt 0:00:11]} d5 {[%emt 0:00:04]} 3. d3 {[%emt 0:00:02]} dxe4 {[%emt 0:00:16]} 4. dxe4 {[%emt 0:00:04]} Qxd1+ {[%emt 0:00:02]} 5. Kxd1 {[%emt 0:00:01]} g6 {[%emt 0:00:13]} 6. Ne5 {[%emt 0:01:10]} Nd7 {[%emt 0:00:19]} 7. Nd3 {[%emt 0:00:23]} Bg7 {[%emt 0:00:18]} 8. Nd2 {[%emt 0:03:39]} Nh6 {[%emt 0:01:19]} 9. a4 {[%emt 0:05:17]} O-O {[%emt 0:01:48]} 10. f3 {[%emt 0:00:27]} f5 {[%emt 0:00:05]} 11. a5 {[%emt 0:00:12]} Nf6 {[%emt 0:00:24]} 12. Ra4 {[%emt 0:00:22]} Nf7 {[%emt 0:01:37]} 13. Be2 {[%emt 0:01:08]} Rd8 {[%emt 0:00:29]} 14. Re1 {[%emt 0:00:36]} fxe4 {[%emt 0:00:45]} 15. Nxe4 {[%emt 0:00:03]} Nxe4 {[%emt 0:00:11]} 16. Rxe4 {[%emt 0:00:02]} e5 {[%emt 0:05:24]} 17. Be3 {[%emt 0:00:47]} Nd6 {[%emt 0:00:09]} 18. Rb4 {[%emt 0:00:06]} Be6 {[%emt 0:00:09]} 19. Bg5 {[%emt 0:00:45]} Re8 {[%emt 0:00:25]} 20. Nc5 {[%emt 0:00:13]} Bc8 {[%emt 0:00:11]} 21. Bd3 {[%emt 0:00:19]} Bf8 {[%emt 0:00:11]} 22. Ne4 {[%emt 0:00:28]} Nxe4 {[%emt 0:00:09]} 23. Rbxe4 {[%emt 0:00:04]} Bg7 {[%emt 0:01:02]} 24. Rb4 {[%emt 0:00:17]} Bf8 {[%emt 0:00:38]} 25. Rb3 {[%emt 0:00:10]} Rb8 {[%emt 0:00:03]} 26. Bc4+ {[%emt 0:00:06]} Be6 {[%emt 0:00:14]} 27. Bxe6+ {[%emt 0:00:02]} Rxe6 {[%emt 0:00:01]} 28. Re4 {[%emt 0:00:04]} Bc5 {[%emt 0:00:23]} 29. Ke2 {[%emt 0:00:07]} b5 {[%emt 0:00:03]} 30. axb6 {[%emt 0:00:03]} axb6 {[%emt 0:00:01]} 31. Be3 {[%emt 0:00:14]} Bxe3 {[%emt 0:00:07]} 32. Rbxe3 {[%emt 0:00:03]} Ra8 {[%emt 0:00:09]} 33. Rxe5 {[%emt 0:00:08]} Rxe5 {[%emt 0:00:01]} 34. Rxe5 {[%emt 0:00:02]} Ra2 {[%emt 0:00:01]} 35. Re6 {[%emt 0:00:01]} Rxb2 {[%emt 0:00:04]} 36. Rxc6 {[%emt 0:00:01]} b5 {[%emt 0:00:08]} 37. Kd3 {[%emt 0:00:06]} Rb1 {[%emt 0:00:05]} 38. Rb6 {[%emt 0:00:03]} Rg1 {[%emt 0:00:04]} 39. g4 {[%emt 0:00:13]} Rb1 {[%emt 0:00:05]} 40. Rb7 {[%emt 0:00:07]} h5 {[%emt 0:00:08]} 41. gxh5 {[%emt 0:00:05]} gxh5 {[%emt 0:00:02]} 42. f4 {[%emt 0:00:02]} h4 {[%emt 0:00:10]} 43. Ke4 {[%emt 0:00:06]} Rc1 {[%emt 0:00:07]} 44. Kd3 {[%emt 0:00:07]} Rb1 {[%emt 0:00:06]} 45. c3 {[%emt 0:00:05]} h3 {[%emt 0:00:06]} 46. Ke4 {[%emt 0:00:04]} Rc1 {[%emt 0:00:03]} 47. Kd4 {[%emt 0:00:02]} Rh1 {[%emt 0:00:07]} 48. Rxb5 {[%emt 0:00:02]} Rxh2 {[%emt 0:00:01]} 49. Rh5 {[%emt 0:00:02]} Kf7 {[%emt 0:00:11]} 50. f5 {[%emt 0:00:12]} Rh1 {[%emt 0:00:03]} 51. c4 {[%emt 0:00:12]} h2 {[%emt 0:00:03]} 52. Kc5 {[%emt 0:00:03]} Kf6 {[%emt 0:00:05]} 53. Kc6 {[%emt 0:00:05]} Rc1 {[%emt 0:00:03]} 54. Rxh2 {[%emt 0:00:04]} Rxc4+ {[%emt 0:00:01]} 55. Kd5 {[%emt 0:00:01]} Rf4 {[%emt 0:00:02]} 56. Rh5 {[%emt 0:00:11]} Rxf5+ {[%emt 0:00:02]} 57. Rxf5+ {[%emt 0:00:01]} Kxf5 {[%emt 0:00:01]} 1/2-1/2

[Event "European Online Club-ch-A 2021"]
[Site "Online"]
[Date "2021.03.27"]
[Round "6.18"]
[White "Nemeth, Miklos"]
[Black "Istratescu, Andrei"]
[Result "1-0"]
[ECO "B33"]
[WhiteElo "2488"]
[BlackElo "2553"]
[Annotator "ChessBase"]
[PlyCount "41"]
[EventDate "2021.03.27"]
[EventType "team-tourn"]
[EventCountry "NET"]
[SourceTitle "playchess.com"]
[Source "ChessBase"]
[SourceQuality "1"]
[TimeControl "900+5"]

1. e4 {[%emt 0:00:00]} c5 {[%emt 0:00:04]} 2. Nf3 {[%emt 0:00:03]} Nc6 {[%emt 0:00:02]} 3. d4 {[%emt 0:00:04]} cxd4 {[%emt 0:00:02]} 4. Nxd4 {[%emt 0:00:02]} Qb6 {[%emt 0:00:02]} 5. Nb3 {[%emt 0:00:07]} Nf6 {[%emt 0:00:02]} 6. Nc3 {[%emt 0:00:05]} e6 {[%emt 0:00:02]} 7. Bd3 {[%emt 0:00:04]} a6 {[%emt 0:00:10]} 8. Be3 {[%emt 0:00:19]} Qc7 {[%emt 0:00:03]} 9. f4 {[%emt 0:00:13]} d6 {[%emt 0:00:03]} 10. Qf3 {[%emt 0:00:04]} b5 {[%emt 0:00:05]} 11. O-O {[%emt 0:00:22]} Bb7 {[%emt 0:00:04]} 12. a4 {[%emt 0:00:10]} b4 {[%emt 0:00:03]} 13. Ne2 {[%emt 0:00:03]} Be7 {[%emt 0:00:19]} 14. a5 {[%emt 0:00:18]} O-O {[%emt 0:00:23]} 15. Qh3 {[%emt 0:00:14]} e5 {[%emt 0:01:00]} 16. Ng3 {[%emt 0:00:38]} exf4 {[%emt 0:00:22]} 17. Rxf4 {[%emt 0:00:17]} Ne5 {[%emt 0:00:27]} 18. Nf5 {[%emt 0:00:13]} g6 {[%emt 0:00:32]} 19. Nxe7+ {[%emt 0:01:09]} Qxe7 {[%emt 0:00:03]} 20. Qh4 {[%emt 0:00:04]} Kg7 {[%emt 0:00:15]} 21. Rxf6 {[%emt 0:00:09]} 1-0

[Event "European Online Club-ch-A 2021"]
[Site "Online"]
[Date "2021.03.27"]
[Round "6.19"]
[White "Marin, Mihail"]
[Black "Kovacs, Gabor"]
[Result "1/2-1/2"]
[ECO "A14"]
[WhiteElo "2502"]
[BlackElo "2455"]
[Annotator "ChessBase"]
[PlyCount "126"]
[EventDate "2021.03.27"]
[EventType "team-tourn"]
[EventCountry "NET"]
[SourceTitle "playchess.com"]
[Source "ChessBase"]
[SourceQuality "1"]
[TimeControl "900+5"]

1. c4 {[%emt 0:00:00]} e6 {[%emt 0:00:04]} 2. g3 {[%emt 0:00:02]} d5 {[%emt 0:00:02]} 3. Bg2 {[%emt 0:00:02]} Nf6 {[%emt 0:00:03]} 4. Nf3 {[%emt 0:00:01]} Be7 {[%emt 0:00:01]} 5. O-O {[%emt 0:00:03]} O-O {[%emt 0:00:01]} 6. b3 {[%emt 0:00:03]} b6 {[%emt 0:00:02]} 7. Bb2 {[%emt 0:00:02]} Bb7 {[%emt 0:00:01]} 8. e3 {[%emt 0:00:03]} Nbd7 {[%emt 0:00:03]} 9. Nc3 {[%emt 0:00:06]} c5 {[%emt 0:00:05]} 10. Qe2 {[%emt 0:00:14]} Rc8 {[%emt 0:00:05]} 11. d3 {[%emt 0:00:02]} Qc7 {[%emt 0:00:30]} 12. Ne1 {[%emt 0:00:36]} dxc4 {[%emt 0:01:56]} 13. bxc4 {[%emt 0:00:04]} Ne8 {[%emt 0:00:40]} 14. f4 {[%emt 0:00:08]} Nd6 {[%emt 0:00:04]} 15. g4 {[%emt 0:00:14]} a6 {[%emt 0:00:22]} 16. a4 {[%emt 0:00:03]} Bf6 {[%emt 0:01:50]} 17. g5 {[%emt 0:01:00]} Bxc3 {[%emt 0:00:03]} 18. Bxc3 {[%emt 0:00:02]} b5 {[%emt 0:00:04]} 19. axb5 {[%emt 0:00:04]} axb5 {[%emt 0:00:10]} 20. cxb5 {[%emt 0:00:07]} Bxg2 {[%emt 0:00:13]} 21. Nxg2 {[%emt 0:00:18]} Nxb5 {[%emt 0:00:02]} 22. Bxg7 {[%emt 0:00:15]} Kxg7 {[%emt 0:00:07]} 23. Qb2+ {[%emt 0:00:03]} Nd4 {[%emt 0:00:03]} 24. exd4 {[%emt 0:00:01]} cxd4 {[%emt 0:00:02]} 25. Qxd4+ {[%emt 0:00:03]} Kg8 {[%emt 0:00:01]} 26. Ne3 {[%emt 0:00:12]} Qc5 {[%emt 0:00:05]} 27. Qxc5 {[%emt 0:00:05]} Nxc5 {[%emt 0:00:03]} 28. Rad1 {[%emt 0:00:23]} Rfd8 {[%emt 0:00:13]} 29. d4 {[%emt 0:00:19]} Ne4 {[%emt 0:00:18]} 30. Rd3 {[%emt 0:01:17]} Nc3 {[%emt 0:00:57]} 31. Kg2 {[%emt 0:00:26]} Nd5 {[%emt 0:00:05]} 32. Nxd5 {[%emt 0:00:09]} Rxd5 {[%emt 0:00:02]} 33. h4 {[%emt 0:00:11]} h6 {[%emt 0:00:09]} 34. Kf3 {[%emt 0:00:11]} Kg7 {[%emt 0:00:12]} 35. Re1 {[%emt 0:00:08]} Rc2 {[%emt 0:00:24]} 36. Re5 {[%emt 0:00:48]} Rxe5 {[%emt 0:00:53]} 37. gxh6+ {[%emt 0:01:00]} Kxh6 {[%emt 0:00:16]} 38. dxe5 {[%emt 0:00:03]} Rh2 {[%emt 0:00:41]} 39. Rd7 {[%emt 0:00:20]} Kg6 {[%emt 0:00:11]} 40. Kg4 {[%emt 0:00:12]} Rg2+ {[%emt 0:00:04]} 41. Kh3 {[%emt 0:00:13]} Rg1 {[%emt 0:01:04]} 42. h5+ {[%emt 0:00:08]} Kxh5 {[%emt 0:00:31]} 43. Rxf7 {[%emt 0:00:05]} Ra1 {[%emt 0:00:02]} 44. Rh7+ {[%emt 0:00:45]} Kg6 {[%emt 0:00:02]} 45. Re7 {[%emt 0:00:03]} Kf5 {[%emt 0:00:27]} 46. Rf7+ {[%emt 0:00:03]} Ke4 {[%emt 0:00:08]} 47. Kg4 {[%emt 0:00:05]} Rg1+ {[%emt 0:00:10]} 48. Kh5 {[%emt 0:00:02]} Rg2 {[%emt 0:00:20]} 49. Kh6 {[%emt 0:00:11]} Rg1 {[%emt 0:00:06]} 50. Rf6 {[%emt 0:02:25]} Rg4 {[%emt 0:00:47]} 51. Rxe6 {[%emt 0:00:16]} Rxf4 {[%emt 0:00:10]} 52. Re8 {[%emt 0:01:09]} Rg4 {[%emt 0:00:09]} 53. Kh5 {[%emt 0:00:28]} Rg1 {[%emt 0:00:03]} 54. Kh6 {[%emt 0:00:20]} Kf5 {[%emt 0:00:06]} 55. Kh7 {[%emt 0:00:06]} Re1 {[%emt 0:00:14]} 56. Rf8+ {[%emt 0:00:15]} Ke6 {[%emt 0:00:02]} 57. Kg6 {[%emt 0:00:08]} Rg1+ {[%emt 0:00:04]} 58. Kh6 {[%emt 0:00:07]} Kxe5 {[%emt 0:00:02]} 59. Rf2 {[%emt 0:00:02]} Ke6 {[%emt 0:00:05]} 60. Re2+ {[%emt 0:00:09]} Kf6 {[%emt 0:00:02]} 61. Rf2+ {[%emt 0:00:04]} Ke6 {[%emt 0:00:02]} 62. Re2+ {[%emt 0:00:02]} Kf6 {[%emt 0:00:01]} 63. Rf2+ {[%emt 0:00:03]} Ke6 {[%emt 0:00:02]} 1/2-1/2

[Event "European Online Club-ch-A 2021"]
[Site "Online"]
[Date "2021.03.27"]
[Round "6.20"]
[White "Csonka, Attila Istvan"]
[Black "Costachi, Mihnea"]
[Result "1/2-1/2"]
[ECO "C42"]
[WhiteElo "2362"]
[BlackElo "2471"]
[Annotator "ChessBase"]
[PlyCount "142"]
[EventDate "2021.03.27"]
[EventType "team-tourn"]
[EventCountry "NET"]
[SourceTitle "playchess.com"]
[Source "ChessBase"]
[SourceQuality "1"]
[TimeControl "900+5"]

1. e4 {[%emt 0:00:00]} e5 {[%emt 0:00:03]} 2. Nf3 {[%emt 0:00:08]} Nf6 {[%emt 0:00:37]} 3. Nxe5 {[%emt 0:00:04]} d6 {[%emt 0:00:01]} 4. Nf3 {[%emt 0:00:01]} Nxe4 {[%emt 0:00:02]} 5. Nc3 {[%emt 0:00:02]} Nxc3 {[%emt 0:00:02]} 6. dxc3 {[%emt 0:00:01]} Be7 {[%emt 0:00:03]} 7. Be3 {[%emt 0:00:01]} Nc6 {[%emt 0:00:02]} 8. Qd2 {[%emt 0:00:02]} Be6 {[%emt 0:00:01]} 9. O-O-O {[%emt 0:00:17]} Qd7 {[%emt 0:00:03]} 10. a3 {[%emt 0:00:10]} a6 {[%emt 0:00:04]} 11. Bd3 {[%emt 0:00:11]} O-O-O {[%emt 0:00:13]} 12. Rhe1 {[%emt 0:00:16]} Ne5 {[%emt 0:00:48]} 13. Nd4 {[%emt 0:00:31]} Nxd3+ {[%emt 0:00:39]} 14. Qxd3 {[%emt 0:00:05]} Bf6 {[%emt 0:01:32]} 15. f3 {[%emt 0:00:45]} Kb8 {[%emt 0:00:27]} 16. Bg1 {[%emt 0:00:17]} Rde8 {[%emt 0:00:32]} 17. Re2 {[%emt 0:00:24]} h6 {[%emt 0:01:07]} 18. Rde1 {[%emt 0:00:05]} Re7 {[%emt 0:00:34]} 19. Nxe6 {[%emt 0:00:40]} fxe6 {[%emt 0:00:03]} 20. Re4 {[%emt 0:00:20]} Rhe8 {[%emt 0:00:21]} 21. Rb4 {[%emt 0:00:28]} c5 {[%emt 0:00:10]} 22. Rbe4 {[%emt 0:00:23]} d5 {[%emt 0:00:26]} 23. R4e2 {[%emt 0:00:04]} Qd6 {[%emt 0:00:23]} 24. g3 {[%emt 0:01:11]} Kc7 {[%emt 0:00:36]} 25. b4 {[%emt 0:00:43]} c4 {[%emt 0:00:47]} 26. Qd2 {[%emt 0:00:32]} b6 {[%emt 0:00:12]} 27. f4 {[%emt 0:00:05]} a5 {[%emt 0:00:23]} 28. Bd4 {[%emt 0:00:05]} axb4 {[%emt 0:00:04]} 29. axb4 {[%emt 0:00:10]} e5 {[%emt 0:01:10]} 30. fxe5 {[%emt 0:00:11]} Bxe5 {[%emt 0:00:01]} 31. Bxe5 {[%emt 0:00:05]} Rxe5 {[%emt 0:00:02]} 32. Rxe5 {[%emt 0:00:22]} Rxe5 {[%emt 0:00:02]} 33. Rxe5 {[%emt 0:00:21]} Qxe5 {[%emt 0:00:03]} 34. Kb2 {[%emt 0:00:08]} Kc6 {[%emt 0:00:53]} 35. Qf2 {[%emt 0:00:09]} Kc7 {[%emt 0:00:56]} 36. Qf7+ {[%emt 0:00:06]} Kc6 {[%emt 0:00:02]} 37. Qf8 {[%emt 0:00:09]} Kc7 {[%emt 0:00:33]} 38. Qf7+ {[%emt 0:00:51]} Kc6 {[%emt 0:00:01]} 39. Qf8 {[%emt 0:00:15]} Kc7 {[%emt 0:00:30]} 40. b5 {[%emt 0:01:06]} d4 {[%emt 0:00:19]} 41. Qf7+ {[%emt 0:00:03]} Kb8 {[%emt 0:00:07]} 42. Qxc4 {[%emt 0:00:05]} dxc3+ {[%emt 0:00:02]} 43. Kb3 {[%emt 0:00:03]} h5 {[%emt 0:01:03]} 44. Kb4 {[%emt 0:00:30]} Qe7+ {[%emt 0:00:08]} 45. Kxc3 {[%emt 0:00:20]} Qe1+ {[%emt 0:00:03]} 46. Kb2 {[%emt 0:00:13]} Qe5+ {[%emt 0:00:05]} 47. Ka2 {[%emt 0:00:02]} g5 {[%emt 0:00:22]} 48. h4 {[%emt 0:00:46]} gxh4 {[%emt 0:00:21]} 49. gxh4 {[%emt 0:00:03]} Kb7 {[%emt 0:00:07]} 50. Qc6+ {[%emt 0:00:06]} Ka7 {[%emt 0:00:03]} 51. Kb3 {[%emt 0:00:13]} Qe3+ {[%emt 0:00:23]} 52. c3 {[%emt 0:00:08]} Qe5 {[%emt 0:00:31]} 53. Qc4 {[%emt 0:00:56]} Qe7 {[%emt 0:00:14]} 54. Qd5 {[%emt 0:00:13]} Qxh4 {[%emt 0:00:15]} 55. Qd7+ {[%emt 0:00:05]} Kb8 {[%emt 0:00:03]} 56. Qd6+ {[%emt 0:00:01]} Kb7 {[%emt 0:00:27]} 57. Qc6+ {[%emt 0:00:03]} Ka7 {[%emt 0:00:02]} 58. Qc7+ {[%emt 0:00:01]} Ka8 {[%emt 0:00:01]} 59. Qc8+ {[%emt 0:00:04]} Ka7 {[%emt 0:00:02]} 60. Qa6+ {[%emt 0:00:01]} Kb8 {[%emt 0:00:01]} 61. Qxb6+ {[%emt 0:00:02]} Kc8 {[%emt 0:00:04]} 62. Qc6+ {[%emt 0:00:12]} Kb8 {[%emt 0:00:01]} 63. b6 {[%emt 0:00:25]} Qe7 {[%emt 0:00:02]} 64. Ka4 {[%emt 0:00:56]} h4 {[%emt 0:00:09]} 65. c4 {[%emt 0:00:31]} h3 {[%emt 0:00:30]} 66. c5 {[%emt 0:00:15]} h2 {[%emt 0:00:12]} 67. Qd5 {[%emt 0:00:46]} h1=Q {[%emt 0:00:24]} 68. Qxh1 {[%emt 0:00:04]} Qxc5 {[%emt 0:00:01]} 69. Qh2+ {[%emt 0:00:06]} Kb7 {[%emt 0:00:02]} 70. Qc7+ {[%emt 0:00:03]} Qxc7 {[%emt 0:00:02]} 71. bxc7 {[%emt 0:00:01]} Kxc7 {[%emt 0:00:02]} 1/2-1/2

[Event "European Online Club-ch-A 2021"]
[Site "Online"]
[Date "2021.03.27"]
[Round "7.1"]
[White "Hera, Imre Jr."]
[Black "Horvath, Laszlo"]
[Result "1-0"]
[ECO "B02"]
[WhiteElo "2610"]
[BlackElo "2183"]
[Annotator "ChessBase"]
[PlyCount "59"]
[EventDate "2021.03.27"]
[EventType "team-tourn"]
[EventCountry "NET"]
[SourceTitle "playchess.com"]
[Source "ChessBase"]
[SourceQuality "1"]
[TimeControl "900+5"]

1. e4 {[%emt 0:00:00]} Nf6 {[%emt 0:00:03]} 2. Nc3 {[%emt 0:00:03]} d5 {[%emt 0:00:03]} 3. e5 {[%emt 0:00:02]} Nfd7 {[%emt 0:00:04]} 4. d4 {[%emt 0:00:09]} c5 {[%emt 0:00:02]} 5. e6 {[%emt 0:00:24]} fxe6 {[%emt 0:00:04]} 6. Nf3 {[%emt 0:00:02]} Nc6 {[%emt 0:01:27]} 7. dxc5 {[%emt 0:03:54]} g6 {[%emt 0:01:54]} 8. Nd4 {[%emt 0:00:09]} Nxd4 {[%emt 0:00:11]} 9. Qxd4 {[%emt 0:00:04]} Nf6 {[%emt 0:00:02]} 10. Bf4 {[%emt 0:00:17]} Bg7 {[%emt 0:01:03]} 11. Be5 {[%emt 0:01:04]} O-O {[%emt 0:00:23]} 12. h4 {[%emt 0:00:55]} Rf7 {[%emt 0:01:50]} 13. Be2 {[%emt 0:00:23]} Qf8 {[%emt 0:00:56]} 14. O-O-O {[%emt 0:03:22]} Nd7 {[%emt 0:02:50]} 15. Bxg7 {[%emt 0:00:02]} Qxg7 {[%emt 0:00:04]} 16. Qe3 {[%emt 0:00:08]} Qf6 {[%emt 0:00:26]} 17. Kb1 {[%emt 0:01:05]} b6 {[%emt 0:01:06]} 18. c6 {[%emt 0:00:15]} Ne5 {[%emt 0:00:11]} 19. c7 {[%emt 0:00:12]} Bd7 {[%emt 0:00:20]} 20. Ba6 {[%emt 0:00:06]} Nc6 {[%emt 0:00:08]} 21. Bb7 {[%emt 0:00:43]} d4 {[%emt 0:00:12]} 22. Qe4 {[%emt 0:00:26]} Rff8 {[%emt 0:00:38]} 23. Bxc6 {[%emt 0:01:27]} Bxc6 {[%emt 0:00:05]} 24. Qxc6 {[%emt 0:00:02]} dxc3 {[%emt 0:00:02]} 25. Qxa8 {[%emt 0:00:11]} Rxa8 {[%emt 0:00:03]} 26. Rd8+ {[%emt 0:00:02]} Qf8 {[%emt 0:00:02]} 27. Rhd1 {[%emt 0:00:02]} Kg7 {[%emt 0:00:29]} 28. Rxf8 {[%emt 0:00:03]} Rxf8 {[%emt 0:00:03]} 29. Rd8 {[%emt 0:00:01]} Rxf2 {[%emt 0:00:01]} 30. bxc3 {[%emt 0:00:04]} 1-0